bitfinex-derivatives/quotes_ETHF0:USTF0_20250417
["timestamp","ask_amount","ask_price","bid_price","bid_amount"]
[1744914798399,1.24094,1611.8,1611.7,0.00929742]
[1744914798601,6.04214,1611.8,1611.7,0.00929742]
[1744914798804,11.04214,1611.8,1611.7,0.00929742]
[1744914799603,6.04214,1611.8,1611.7,0.00929742]
[1744914799804,4.8012,1611.8,1611.7,1.25031742]
[1744914799996,6.04214,1611.8,1611.7,1.25031742]
[1744914800318,4.8012,1611.8,1611.7,1.25031742]
[1744914801200,6.04214,1611.8,1611.7,1.25031742]
[1744914802906,4.8012,1611.8,1611.7,1.25031742]
[1744914803096,6.04214,1611.8,1611.7,1.25031742]
[1744914803293,4.8012,1611.8,1611.7,1.25031742]
[1744914803601,6.04214,1611.8,1611.7,1.25031742]
[1744914805505,4.8012,1611.8,1611.7,1.25031742]
[1744914806108,6.04214,1611.8,1611.7,1.25031742]
[1744914807008,4.8012,1611.8,1611.7,1.25031742]
[1744914807708,6.04214,1611.8,1611.7,1.25031742]
[1744914809206,4.8012,1611.8,1611.7,1.25031742]
[1744914810101,2.3652,1611.8,1611.7,1.25031742]
[1744914810302,2.3652,1611.8,1611.7,3.81241742]
[1744914810702,4.11118414,1611.9,1611.8,1.24094]
[1744914810906,6.68468414,1611.9,1611.8,6.07744]
[1744914812141,7.92555414,1611.9,1611.8,1.24094]
[1744914812521,11.13335414,1611.9,1611.8,1.24094]
[1744914812717,1.24094,1611.8,1611.7,0.00929742]
[1744914812923,6.31524,1611.8,1611.7,0.00929742]
[1744914814521,6.31524,1611.8,1611.7,1.25031742]
[1744914816517,6.31524,1611.8,1611.7,0.00929742]
[1744914816715,6.31524,1611.8,1611.7,1.25031742]
[1744914816920,6.31524,1611.8,1611.7,0.00929742]
[1744914817121,6.31524,1611.8,1611.7,1.25031742]
[1744914817624,6.31524,1611.8,1611.7,0.00929742]
[1744914817922,13.28432313,1611.8,1611.7,1.25031742]
[1744914821324,13.28432313,1611.8,1611.7,0.00929742]
[1744914822024,13.28432313,1611.8,1611.7,1.25031742]
[1744914824231,13.28432313,1611.8,1611.7,3.68271742]
[1744914825214,13.28432313,1611.8,1611.7,1.25031742]
[1744914826128,13.28432313,1611.8,1611.7,0.00929742]
[1744914826528,13.28432313,1611.8,1611.7,1.25031742]
[1744914828324,16.49212313,1611.8,1611.7,1.25031742]
[1744914829545,16.49212313,1611.8,1611.7,0.00929742]
[1744914830340,16.49212313,1611.8,1611.7,1.25031742]
[1744914830832,16.49212313,1611.8,1611.7,0.00929742]
[1744914831656,16.49212313,1611.8,1611.7,1.25031742]
[1744914831930,16.49212313,1611.8,1611.7,0.00929742]
[1744914836738,16.49212313,1611.8,1611.7,1.25031742]
[1744914836939,27.27186749,1611.8,1611.7,1.25031742]
[1744914837330,20.95662749,1611.8,1611.7,5.58931742]
[1744914837637,18.98976749,1611.8,1611.7,10.64971742]
[1744914837831,20.95662749,1611.8,1611.7,10.64971742]
[1744914838028,23.43312749,1611.8,1611.7,10.64971742]
[1744914838224,24.67406749,1611.8,1611.7,10.64971742]
[1744914839043,20.95662749,1611.8,1611.7,10.64971742]
[1744914839339,17.74882749,1611.8,1611.7,10.64971742]
[1744914839537,18.98976749,1611.8,1611.7,10.64971742]
[1744914839839,23.43312749,1611.8,1611.7,10.64971742]
[1744914840338,17.74882749,1611.8,1611.7,10.64971742]
[1744914840739,18.98976749,1611.8,1611.7,10.64971742]
[1744914840938,22.19756749,1611.8,1611.7,10.64971742]
[1744914841127,5.37375149,1611.8,1611.7,10.64971742]
[1744914841331,4.13281149,1611.8,1611.7,10.64971742]
[1744914841543,7.34061149,1611.8,1611.7,10.64971742]
[1744914841743,8.58155149,1611.8,1611.7,10.64971742]
[1744914841933,11.11505149,1611.8,1611.7,6.97349742]
[1744914842333,11.11505149,1611.8,1611.7,4.34829742]
[1744914842843,11.11505149,1611.8,1611.7,0.00929742]
[1744914844045,16.11505149,1611.8,1611.7,0.00929742]
[1744914844246,16.19005149,1611.8,1611.7,0.00929742]
[1744914844946,11.19005149,1611.8,1611.7,0.00929742]
[1744914846335,11.11505149,1611.8,1611.7,0.00929742]
[1744914851347,11.11505149,1611.8,1611.7,1.25031742]
[1744914851547,8.58155149,1611.8,1611.7,0.00929742]
[1744914851740,10.99625149,1611.8,1611.7,2.40589742]
[1744914852150,16.23825149,1611.8,1611.7,2.40589742]
[1744914852950,18.30465723,1611.8,1611.7,2.40589742]
[1744914853350,18.30465723,1611.8,1611.7,0.00929742]
[1744914855844,3.10275,1611.6,1611.3,6.7359]
[1744914856043,3.2078,1611.4,1611.3,9.3813]
[1744914856243,4.44905,1611.4,1611.3,9.3813]
[1744914856449,6.09825,1611.4,1611.3,9.3813]
[1744914857450,6.09825,1611.4,1611.3,5.0473]
[1744914857647,1.24133,1611.3,1611.2,0.00929742]
[1744914857849,2.89053,1611.3,1611.2,0.00929742]
[1744914858054,1.24164,1610.9,1610.8,21.97210264]
[1744914858244,4.44944,1610.9,1610.8,20.37160264]
[1744914858947,5.95064,1610.9,1610.8,20.37160264]
[1744914861154,15.28564,1610.9,1610.8,20.37160264]
[1744914861354,1.24171,1610.8,1610.7,0.08429742]
[1744914861552,2.83371,1610.8,1610.7,0.08429742]
[1744914863147,4.31991,1610.8,1610.7,0.08429742]
[1744914865657,8.42939352,1610.8,1610.7,0.08429742]
[1744914867966,1.24202,1610.4,1610.3,4.335]
[1744914868165,1.2421,1610.3,1610.2,1.609]
[1744914868462,3.0027,1610.3,1610.2,1.609]
[1744914868957,3.0027,1610.3,1610.2,3.2805]
[1744914869656,3.0027,1610.3,1610.2,4.52268]
[1744914870053,1.2421,1610.3,1610.2,4.52268]
[1744914870258,1.2421,1610.3,1610.2,9.52268]
[1744914870559,0.00929742,1610.4,1610.3,1.2421]
[1744914870761,0.00929742,1610.4,1610.3,7.9136]
[1744914872254,4.45911742,1610.4,1610.3,7.9136]
[1744914872453,3.21709742,1610.4,1610.3,7.9136]
[1744914872662,4.45911742,1610.4,1610.3,7.9136]
[1744914872857,3.21709742,1610.4,1610.3,7.9136]
[1744914873259,4.45911742,1610.4,1610.3,7.9136]
[1744914873558,0.00929742,1610.4,1610.3,7.9136]
[1744914873859,1.25131742,1610.4,1610.3,7.9136]
[1744914874154,4.45911742,1610.4,1610.3,1.6715]
[1744914874456,1.2421,1610.3,1610.2,1.609]
[1744914874658,2.9451,1610.3,1610.2,1.609]
[1744914874860,2.9451,1610.3,1610.2,3.2537]
[1744914875160,1.2421,1610.3,1610.2,4.49588]
[1744914876548,1.2421,1610.3,1610.2,3.2537]
[1744914876954,2.9451,1610.3,1610.2,3.2537]
[1744914877454,2.9451,1610.3,1610.2,4.49588]
[1744914877662,2.9451,1610.3,1610.2,3.2537]
[1744914879761,4.45913742,1610.4,1610.3,1.2421]
[1744914880100,4.45913742,1610.4,1610.3,2.9452]
[1744914881063,1.25133742,1610.4,1610.3,2.9452]
[1744914881263,4.45913742,1610.4,1610.3,1.7031]
[1744914881763,4.45913742,1610.4,1610.3,2.9452]
[1744914882456,4.45913742,1610.4,1610.3,1.7031]
[1744914883068,1.2421,1610.3,1610.2,1.609]
[1744914883260,2.9463,1610.3,1610.2,1.609]
[1744914885474,2.9463,1610.3,1610.2,0.075]
[1744914886957,2.9463,1610.3,1610.2,1.5534]
[1744914889265,2.9463,1610.3,1610.2,0.075]
[1744914896072,4.80946,1610.3,1609.7,5.9441]
[1744914896263,4.45021,1609.9,1609.8,2.7839]
[1744914896673,6.14681,1609.9,1609.8,2.7839]
[1744914897376,2.93901,1609.9,1609.8,2.7839]
[1744914897674,2.93901,1609.9,1609.8,4.394]
[1744914897875,4.45021,1609.9,1609.8,4.394]
[1744914898076,1.24241,1609.9,1609.8,10.63648]
[1744914898316,4.45021,1609.9,1609.8,10.63648]
[1744914898573,4.45021,1609.9,1609.8,4.394]
[1744914898876,6.13771,1609.9,1609.8,4.394]
[1744914899571,2.92991,1609.9,1609.8,4.394]
[1744914899780,1.24241,1609.9,1609.8,4.394]
[1744914899975,4.45021,1609.9,1609.8,4.394]
[1744914900174,6.13771,1609.9,1609.8,4.394]
[1744914900572,6.13771,1609.9,1609.8,2.7839]
[1744914903077,6.13771,1609.9,1609.8,4.4453]
[1744914903475,4.45021,1609.9,1609.8,4.4453]
[1744914903681,1.24241,1609.9,1609.8,5.68778]
[1744914904277,1.24236,1610.0,1609.9,1.24235]
[1744914904579,1.24231,1610.1,1610.0,1.24229]
[1744914904785,1.24231,1610.1,1610.0,5.57629]
[1744914904980,1.24223,1610.2,1610.1,1.24225]
[1744914905184,4.10948352,1610.3,1610.2,1.24218]
[1744914905480,9.49118327,1610.3,1610.2,1.24218]
[1744914905781,8.24908327,1610.3,1610.2,6.24218]
[1744914906182,9.49118327,1610.3,1610.2,6.31718]
[1744914906580,8.24908327,1610.3,1610.2,6.31718]
[1744914908480,1.25134742,1610.4,1610.3,1.2421]
[1744914908682,1.25134742,1610.4,1610.3,5.5761]
[1744914909073,1.25134742,1610.4,1610.3,4.334]
[1744914909474,1.25134742,1610.4,1610.3,5.5761]
[1744914909684,1.25134742,1610.4,1610.3,4.334]
[1744914910191,1.25134742,1610.4,1610.3,5.5761]
[1744914910873,0.00929742,1610.4,1610.3,5.5761]
[1744914911779,13.52382838,1610.7,1610.3,13.68121]
[1744914911980,14.76567838,1610.7,1610.6,1.24187]
[1744914912195,14.76567838,1610.7,1610.6,4.333]
[1744914912983,14.76567838,1610.7,1610.6,5.57487]
[1744914913187,14.76567838,1610.7,1610.6,4.333]
[1744914913585,14.76567838,1610.7,1610.6,5.57487]
[1744914914491,13.52382838,1610.7,1610.6,5.57487]
[1744914915191,14.76561838,1610.7,1610.6,5.57487]
[1744914915685,13.52382838,1610.7,1610.6,5.57487]
[1744914916194,14.76561838,1610.7,1610.6,5.57487]
[1744914916393,3.2078,1610.7,1610.6,5.57487]
[1744914916781,4.44959,1610.7,1610.6,5.57487]
[1744914917592,3.2078,1610.7,1610.6,5.57487]
[1744914917893,4.44959,1610.7,1610.6,5.57487]
[1744914918489,3.2078,1610.7,1610.6,5.57487]
[1744914918894,0.00929742,1610.8,1610.7,1.24179]
[1744914919090,0.00929742,1610.8,1610.7,2.61819]
[1744914921699,4.12641135,1611.1,1610.8,3.10415]
[1744914921895,4.12641135,1611.1,1611.0,1.24156]
[1744914922089,4.12641135,1611.1,1611.0,1.31656]
[1744914922292,4.12641135,1611.1,1611.0,4.31646]
[1744914922595,4.12641135,1611.1,1611.0,9.31646]
[1744914922796,4.12641135,1611.1,1611.0,4.31646]
[1744914923195,5.36789135,1611.1,1611.0,6.92276]
[1744914923396,5.82741135,1611.1,1611.0,6.92276]
[1744914923595,7.06889135,1611.1,1611.0,6.92276]
[1744914925095,2.94248,1611.1,1611.0,8.23736]
[1744914925402,2.94248,1611.1,1611.0,6.9958]
[1744914925898,6.15028,1611.1,1611.0,4.328]
[1744914926800,6.15028,1611.1,1611.0,5.56956]
[1744914927198,6.15028,1611.1,1611.0,4.328]
[1744914930210,6.15028,1611.1,1611.0,5.56956]
[1744914930411,4.9088,1611.1,1611.0,5.56956]
[1744914930614,1.701,1611.1,1611.0,5.56956]
[1744914930818,2.94248,1611.1,1611.0,5.56956]
[1744914931919,1.701,1611.1,1611.0,5.56956]
[1744914932106,1.701,1611.1,1611.0,5.64456]
[1744914932707,2.94248,1611.1,1611.0,5.64456]
[1744914932916,1.701,1611.1,1611.0,5.64456]
[1744914933619,2.94248,1611.1,1611.0,5.64456]
[1744914933922,1.701,1611.1,1611.0,5.64456]
[1744914934814,2.94248,1611.1,1611.0,5.64456]
[1744914935413,2.94248,1611.1,1611.0,4.403]
[1744914935716,6.15028,1611.1,1611.0,4.403]
[1744914936320,6.15028,1611.1,1611.0,4.328]
[1744914937313,1.24171,1610.8,1610.7,90.409]
[1744914937719,4.31401,1610.8,1610.7,4.327]
[1744914938021,4.31401,1610.8,1610.7,5.56879]
[1744914938216,4.31401,1610.8,1610.7,4.402]
[1744914938422,4.31401,1610.8,1610.7,5.64379]
[1744914938865,4.31401,1610.8,1610.7,4.402]
[1744914940218,4.31401,1610.8,1610.7,5.64379]
[1744914940425,1.6833,1610.8,1610.7,5.64379]
[1744914940616,1.6833,1610.8,1610.7,8.33389]
[1744914941418,2.92501,1610.8,1610.7,8.33389]
[1744914941719,1.6833,1610.8,1610.7,8.33389]
[1744914941920,2.92501,1610.8,1610.7,8.33389]
[1744914949821,1.6833,1610.8,1610.7,8.33389]
[1744914950026,1.6833,1610.8,1610.7,9.97299]
[1744914950227,1.6833,1610.8,1610.7,9.89799]
[1744914953130,1.6833,1610.8,1610.7,9.97299]
[1744914954237,3.2078,1611.0,1610.9,1.24164]
[1744914954541,4.12641135,1611.1,1611.0,1.24156]
[1744914954730,4.12641135,1611.1,1611.0,9.90076]
[1744914955130,4.12641135,1611.1,1611.0,9.97576]
[1744914955736,4.1078091,1611.1,1611.0,14.97576]
[1744914956239,0.00929742,1611.2,1611.1,1.24148]
[1744914956538,0.00929742,1611.2,1611.1,2.99668]
[1744914960642,0.00929742,1611.2,1611.1,6.20448]
[1744914963340,0.00929742,1611.2,1611.1,6.69782727]
[1744914963540,0.00929742,1611.2,1611.1,6.20448]
[1744914964235,10.63847703,1611.7,1611.4,3.10313]
[1744914964442,1.6963,1611.6,1611.5,6.90177]
[1744914964638,2.9374,1611.6,1611.5,6.90177]
[1744914965845,1.6963,1611.6,1611.5,6.90177]
[1744914966437,6.19891445,1611.7,1611.6,1.2411]
[1744914966687,7.86471445,1611.7,1611.6,1.2411]
[1744914967445,7.86471445,1611.7,1611.6,2.5253]
[1744914967755,1.67509742,1611.7,1611.6,2.5253]
[1744914968741,1.67509742,1611.7,1611.6,4.2827]
[1744914969044,1.67509742,1611.7,1611.6,2.5253]
[1744914969548,2.91611742,1611.7,1611.6,2.5253]
[1744914969840,1.67509742,1611.7,1611.6,2.5253]
[1744914971538,2.91611742,1611.7,1611.6,2.5253]
[1744914972148,1.24116,1611.6,1611.5,1.2411]
[1744914972447,4.16466,1611.6,1611.5,5.5631]
[1744914975044,4.16466,1611.6,1611.5,4.322]
[1744914975851,9.16466,1611.6,1611.5,4.322]
[1744914976442,1.24117,1611.5,1611.4,0.00929742]
[1744914976644,6.21157,1611.5,1611.4,0.00929742]
[1744914976844,11.21157,1611.5,1611.4,0.00929742]
[1744914977548,1.24141,1611.2,1611.1,4.317]
[1744914978053,1.24156,1611.0,1610.9,8.14131399]
[1744914978252,4.43689368,1611.0,1610.9,8.14131399]
[1744914978657,6.11029368,1611.0,1610.9,8.14131399]
[1744914978948,1.6734,1611.0,1610.9,9.38295399]
[1744914979145,1.6734,1611.0,1610.9,13.50625399]
[1744914979552,1.6734,1611.0,1610.9,11.84225399]
[1744914980050,2.91496,1611.0,1610.9,11.84225399]
[1744914980252,1.6734,1611.0,1610.9,11.84225399]
[1744914981052,1.6734,1611.0,1610.9,13.58845399]
[1744914982048,1.6734,1611.0,1610.9,11.84225399]
[1744914985855,1.6734,1611.0,1610.9,13.50915399]
[1744914987158,1.6734,1611.0,1610.9,13.58415399]
[1744914989294,1.6734,1611.0,1610.9,13.50915399]
[1744914989453,1.6734,1611.0,1610.9,5.36784]
[1744914990160,1.6734,1611.0,1610.9,5.44284]
[1744914991353,1.6734,1611.0,1610.9,5.36784]
[1744914991860,1.6734,1611.0,1610.9,3.70094]
[1744914992460,1.6734,1611.0,1610.9,5.34144]
[1744914993762,6.85368,1611.3,1611.2,1.24141]
[1744914994168,1.24141,1611.2,1611.1,5.55942]
[1744914994856,1.24141,1611.2,1611.1,4.318]
[1744914995058,2.91431,1611.2,1611.1,4.318]
[1744914997064,2.91431,1611.2,1611.1,5.55948]
[1744914998467,2.91431,1611.2,1611.1,4.318]
[1744914999860,2.91431,1611.2,1611.1,5.55948]
[1744915003570,2.91431,1611.2,1611.1,7.17728]
[1744915006175,2.91431,1611.2,1611.1,5.55948]
[1744915006872,4.12081,1611.2,1611.1,5.55948]
[1744915007073,4.12081,1611.2,1611.1,4.318]
[1744915007376,4.12081,1611.2,1611.1,5.55948]
[1744915008075,2.8794,1611.2,1610.8,2.45099742]
[1744915008277,1.24156,1611.0,1610.9,4.314]
[1744915008583,1.24164,1610.9,1610.8,1.25093742]
[1744915008776,2.92774,1610.9,1610.8,1.25093742]
[1744915008976,4.10054,1610.9,1610.8,1.25093742]
[1744915010579,1.6861,1610.9,1610.8,1.25093742]
[1744915010781,1.24158,1611.0,1610.9,1.24164]
[1744915010979,2.92768,1611.0,1610.9,1.24164]
[1744915011679,2.92768,1611.0,1610.9,2.36834]
[1744915012178,1.6861,1611.0,1610.9,3.53134]
[1744915012378,1.6861,1611.0,1610.9,5.17564]
[1744915012976,2.92766,1611.0,1610.9,5.17564]
[1744915013178,1.6861,1611.0,1610.9,5.17564]
[1744915013478,3.2078,1611.1,1611.0,1.24156]
[1744915013682,9.02676703,1611.2,1611.1,1.24148]
[1744915014178,9.02676703,1611.2,1611.1,2.99328]
[1744915014480,1.24148,1611.1,1611.0,5.5555]
[1744915014681,6.15268,1611.1,1611.0,4.314]
[1744915015081,6.15268,1611.1,1611.0,5.55556]
[1744915016373,4.9112,1611.1,1611.0,5.55556]
[1744915016572,6.15268,1611.1,1611.0,5.55556]
[1744915018284,6.15268,1611.1,1611.0,7.28736]
[1744915019581,4.44928,1611.1,1611.0,4.314]
[1744915019780,1.24156,1611.0,1610.9,4.314]
[1744915020091,5.18016,1611.0,1610.9,4.314]
[1744915020280,5.18016,1611.0,1610.9,4.389]
[1744915020585,5.18016,1611.0,1610.9,5.63064]
[1744915021282,2.87826,1611.0,1610.9,5.63064]
[1744915022283,0.79154485,1611.1,1611.0,1.24156]
[1744915022476,0.79154485,1611.1,1611.0,5.19086]
[1744915022883,6.18961703,1611.1,1611.0,5.19086]
[1744915024491,6.18961703,1611.1,1611.0,13.39866]
[1744915024685,6.1803196,1611.1,1611.0,13.39866]
[1744915025189,6.1803196,1611.1,1611.0,13.47366]
[1744915027487,11.59293816,1611.3,1611.0,8.47366]
[1744915027694,1.24137,1611.3,1611.2,1.24141]
[1744915027891,4.44917,1611.3,1611.2,4.314]
[1744915028389,5.58037,1611.3,1611.2,4.314]
[1744915029795,4.44917,1611.3,1611.2,5.55541]
[1744915030090,3.2078,1611.3,1611.2,5.55541]
[1744915030295,1.24133,1611.3,1611.2,5.55541]
[1744915031596,5.2406192,1611.3,1611.2,5.55541]
[1744915032295,6.8546192,1611.3,1611.2,5.55541]
[1744915032496,3.6468192,1611.3,1611.2,5.55541]
[1744915032693,0.7914892,1611.3,1611.2,5.55541]
[1744915033197,0.7914892,1611.3,1611.2,5.63041]
[1744915034088,0.7914892,1611.3,1611.2,5.55541]
[1744915035097,0.7914892,1611.3,1611.2,7.21761]
[1744915035301,0.7914892,1611.3,1611.2,15.42541]
[1744915035496,1.6213,1611.5,1611.4,1.24125]
[1744915035889,1.6213,1611.5,1611.4,2.90835]
[1744915038100,2.86247,1611.5,1611.4,1.24125]
[1744915039192,1.6213,1611.5,1611.4,1.24125]
[1744915040492,1.6213,1611.5,1611.4,2.94275]
[1744915041600,1.25031742,1611.7,1611.6,1.2411]
[1744915041797,1.72689742,1611.7,1611.6,5.5491]
[1744915041999,1.72689742,1611.7,1611.6,7.7799]
[1744915042201,1.72689742,1611.7,1611.6,9.431]
[1744915043001,2.96791742,1611.7,1611.6,7.7799]
[1744915044596,2.96791742,1611.7,1611.6,5.5491]
[1744915044804,4.06411742,1611.7,1611.6,5.5491]
[1744915045604,4.06411742,1611.7,1611.4,1.24116]
[1744915045605,1.24123,1611.5,1611.4,1.24116]
[1744915045905,1.24123,1611.5,1611.4,5.54916]
[1744915046907,2.84703,1611.5,1611.4,5.54916]
[1744915052108,1.6058,1611.5,1611.4,5.54916]
[1744915052705,2.84697,1611.5,1611.4,5.54916]
[1744915053414,1.6058,1611.5,1611.4,5.54916]
[1744915053614,2.84697,1611.5,1611.4,5.54916]
[1744915061918,2.84697,1611.5,1611.0,9.89933042]
[1744915061919,4.70876,1611.5,1611.0,3.2078]
[1744915062222,4.44928,1611.2,1611.1,4.308]
[1744915062622,6.06898,1611.2,1611.1,4.308]
[1744915063119,6.06898,1611.2,1611.1,5.54948]
[1744915063326,2.86118,1611.2,1611.1,5.54948]
[1744915064123,2.86118,1611.2,1611.1,6.65888]
[1744915066727,2.86118,1611.2,1611.1,5.4174]
[1744915067029,4.72335,1611.2,1610.8,0.00929742]
[1744915067322,1.24164,1610.9,1610.8,0.00929742]
[1744915067824,2.86214,1610.9,1610.8,0.00929742]
[1744915070416,2.86214,1610.9,1610.8,1.25100742]
[1744915070617,2.86214,1610.9,1610.8,0.00929742]
[1744915074931,2.86214,1610.9,1610.8,1.25100742]
[1744915075120,2.86214,1610.9,1610.8,0.00929742]
[1744915080427,2.86214,1610.9,1610.8,1.25100742]
[1744915081530,1.6205,1610.9,1610.8,1.25100742]
[1744915081730,4.44943,1611.0,1610.9,1.24164]
[1744915081931,6.11463,1611.0,1610.9,5.19254]
[1744915082323,2.90683,1611.0,1610.9,5.19254]
[1744915083730,6.11463,1611.0,1610.9,3.9509]
[1744915083928,6.11463,1611.0,1610.9,9.49754]
[1744915084131,4.11072695,1611.2,1611.1,1.24148]
[1744915084334,7.31852695,1611.2,1611.1,1.24148]
[1744915084629,4.11072695,1611.3,1611.2,1.24141]
[1744915084822,5.35205695,1611.3,1611.2,7.74321]
[1744915085233,8.55985695,1611.3,1611.2,7.74321]
[1744915085428,8.55985695,1611.3,1611.2,5.4179]
[1744915085625,1.24148,1611.1,1611.0,5.3889]
[1744915085830,4.44928,1611.1,1611.0,5.3889]
[1744915086025,4.44928,1611.1,1611.0,4.305]
[1744915086432,1.24156,1611.0,1610.9,1.1129]
[1744915086633,2.90726,1611.0,1610.9,1.1129]
[1744915087031,1.24154,1611.1,1611.0,1.24156]
[1744915087253,1.24154,1611.1,1611.0,5.54556]
[1744915087629,4.44934,1611.1,1611.0,4.304]
[1744915088137,1.24154,1611.1,1611.0,4.304]
[1744915088838,4.44934,1611.1,1611.0,4.304]
[1744915089360,4.44934,1611.1,1611.0,5.54556]
[1744915089540,3.00498,1611.2,1611.1,1.24148]
[1744915089729,1.7635,1611.2,1611.1,3.95038]
[1744915090637,3.00491,1611.2,1611.1,3.95038]
[1744915090942,1.7635,1611.2,1611.1,3.95038]
[1744915091466,3.00491,1611.2,1611.1,3.95038]
[1744915091637,3.00491,1611.2,1611.1,2.29988]
[1744915091839,6.21271,1611.2,1611.1,2.29988]
[1744915092035,3.00491,1611.2,1611.1,3.99208]
[1744915093538,6.21271,1611.2,1611.1,1.0584]
[1744915093932,1.24148,1611.1,1611.0,4.304]
[1744915094127,3.00788,1611.1,1611.0,5.54556]
[1744915094833,1.7664,1611.1,1611.0,5.54556]
[1744915095140,1.24137,1611.3,1611.2,1.24141]
[1744915095340,6.21557,1611.3,1611.2,1.24141]
[1744915095841,6.21557,1611.3,1611.2,3.41371]
[1744915096240,3.00777,1611.3,1611.2,3.41371]
[1744915096545,6.21557,1611.3,1611.2,3.41371]
[1744915098639,8.0777,1611.3,1611.0,5.54549]
[1744915098843,4.44928,1611.1,1611.0,4.304]
[1744915099234,6.12488,1611.1,1611.0,4.304]
[1744915103640,6.12488,1611.1,1610.9,2.1276]
[1744915103641,1.24156,1611.0,1610.9,2.1276]
[1744915103948,3.00426,1611.0,1610.9,2.1276]
[1744915104141,3.00426,1611.0,1610.9,2.2026]
[1744915105340,3.00426,1611.0,1610.9,0.075]
[1744915105548,3.78656,1611.0,1610.9,0.075]
[1744915108248,3.00426,1611.0,1610.9,0.075]
[1744915109756,12.04507245,1611.0,1610.9,0.075]
[1744915112450,9.97999909,1611.0,1610.9,0.075]
[1744915118961,9.97999909,1611.0,1610.9,1.31664]
[1744915119146,9.97999909,1611.0,1610.9,2.98694]
[1744915119552,9.97999909,1611.0,1610.9,1.7453]
[1744915119952,9.97999909,1611.0,1610.9,2.98694]
[1744915120251,9.97999909,1611.0,1610.9,1.6703]
[1744915120957,9.97999909,1611.0,1610.9,2.91194]
[1744915121148,9.97999909,1611.0,1610.9,1.6703]
[1744915123158,7.12414095,1611.0,1610.9,1.6703]
[1744915125561,7.12414095,1611.0,1610.9,2.91194]
[1744915127371,5.36144095,1611.0,1610.9,2.91194]
[1744915128374,5.36144095,1611.0,1610.9,1.6703]
[1744915128577,5.36144095,1611.0,1610.9,2.91194]
[1744915128870,7.08634095,1611.0,1610.9,1.6703]
[1744915129876,1.24164,1610.9,1610.8,6.59358742]
[1744915130072,2.97304,1610.9,1610.8,8.31378742]
[1744915132011,1.24164,1610.9,1610.8,8.31378742]
[1744915134580,2.83964,1610.9,1610.8,7.07209742]
[1744915134774,6.04744,1610.9,1610.8,7.07209742]
[1744915135175,6.04744,1610.9,1610.8,8.31380742]
[1744915136683,2.83964,1610.9,1610.8,8.31380742]
[1744915137383,1.24161,1611.0,1610.9,1.24164]
[1744915137683,1.24161,1611.0,1610.9,3.00524]
[1744915137874,2.92951,1611.0,1610.9,3.00524]
[1744915138075,4.11988095,1611.0,1610.9,3.00524]
[1744915138380,4.11988095,1611.0,1610.9,8.00524]
[1744915140076,2.47258095,1611.0,1610.9,8.00524]
[1744915140273,2.47258095,1611.0,1610.9,8.08024]
[1744915141988,2.47258095,1611.0,1610.9,3.08024]
[1744915142284,1.7211,1611.1,1611.0,1.24156]
[1744915142680,1.7211,1611.1,1611.0,2.94826]
[1744915143185,1.24144,1611.2,1611.1,1.24148]
[1744915143384,1.7211,1611.3,1611.2,1.24141]
[1744915143583,1.7211,1611.3,1611.2,2.94811]
[1744915143880,2.96243,1611.3,1611.2,2.94811]
[1744915144386,1.7211,1611.3,1611.2,2.94811]
[1744915144579,2.96243,1611.3,1611.2,2.94811]
[1744915144780,2.96243,1611.3,1611.2,1.24141]
[1744915145789,1.24141,1611.2,1611.1,6.59512]
[1744915146021,2.91751,1611.2,1611.1,6.59512]
[1744915146586,6.12531,1611.2,1611.1,6.59512]
[1744915146980,2.91751,1611.2,1611.1,6.59512]
[1744915147379,6.12531,1611.2,1611.1,6.59512]
[1744915149087,4.8839,1611.2,1611.1,6.59512]
[1744915149287,7.42531991,1611.4,1611.3,1.24133]
[1744915149586,9.10271991,1611.4,1611.3,1.24133]
[1744915149889,9.10271991,1611.4,1611.3,2.26983]
[1744915151181,9.10271991,1611.4,1611.3,1.24133]
[1744915154488,2.91871,1611.4,1611.3,1.24133]
[1744915154787,1.2414,1611.3,1611.1,5.3537]
[1744915154989,4.44921,1611.2,1611.1,5.53648]
[1744915155391,6.12831,1611.2,1611.1,5.53648]
[1744915156991,4.8869,1611.2,1611.1,5.53648]
[1744915157191,6.12831,1611.2,1611.1,5.53648]
[1744915157592,2.92051,1611.2,1611.1,5.53648]
[1744915157891,6.12831,1611.2,1611.1,5.53648]
[1744915158491,2.92051,1611.2,1611.1,5.53648]
[1744915159092,6.12831,1611.2,1611.1,5.53648]
[1744915160391,4.8869,1611.2,1611.1,5.53648]
[1744915160694,4.8869,1611.2,1611.1,7.28968]
[1744915160998,6.18400991,1611.4,1611.3,1.24133]
[1744915161491,6.18400991,1611.4,1611.3,4.03313]
[1744915162487,9.04947991,1611.5,1611.4,1.24125]
[1744915162689,9.04947991,1611.5,1611.4,5.53625]
[1744915162983,7.80830991,1611.5,1611.4,5.53625]
[1744915163600,7.80830991,1611.5,1611.4,7.28075]
[1744915164194,9.04947991,1611.5,1611.4,7.28075]
[1744915164395,7.80830991,1611.5,1611.4,7.28075]
[1744915166694,1.6243,1611.5,1611.4,7.28075]
[1744915167297,4.45817742,1611.7,1611.6,1.2411]
[1744915168692,6.07137742,1611.7,1611.6,1.2411]
[1744915168890,6.07137742,1611.7,1611.6,2.2916]
[1744915170086,1.62249742,1611.7,1611.6,2.2916]
[1744915170590,1.62249742,1611.7,1611.6,3.9461]
[1744915171099,0.00929742,1611.7,1611.6,3.9461]
[1744915171302,0.00929742,1611.7,1611.6,8.9461]
[1744915171596,6.18400991,1612.0,1611.9,1.24087]
[1744915171797,7.89200991,1612.0,1611.9,5.53087]
[1744915172000,9.13279991,1612.0,1611.9,5.53087]
[1744915172398,7.89200991,1612.0,1611.9,5.53087]
[1744915172624,7.89200991,1612.0,1611.9,6.50427]
[1744915173805,7.89200991,1612.0,1611.9,8.20747]